[Event "DPEM German Cup 2022"]
[Site "Magdeburg"]
[Date "2022.08.18"]
[Round "1.2"]
[White "Puerckhauer, Soeren"]
[Black "Bauer, Leon"]
[Result "1-0"]
[ECO "D02"]
[WhiteElo "2158"]
[BlackElo "1966"]
[Annotator "TA"]
[PlyCount "57"]
[EventDate "2022.08.10"]
[EventType "k.o."]
[EventCountry "GER"]
[SourceTitle "playchess.com"]
[Source "ChessBase"]
[SourceQuality "1"]
[TimeControl "40/5400+30:900+30"]

{[%evp 9,57,10,21,19,26,27,61,52,58,64,68,61,148,142,136,43,47,41,52,54,59,77,75,77,37,22,149,150,211,187,191,116,118,116,121,99,97,89,76,83,73,72,137,156,198,203,237,213,241,241]} 1. d4 {[%emt 0:00:02]} d5 {[%emt 0:00:05]} 2. Nf3 {[%emt 0:00:16]} Nf6 {[%emt 0:00:20]} 3. Bf4 {[%emt 0:00:45]} Bf5 {[%emt 0:02:49]} 4. e3 {[%emt 0:00:12]} e6 {[%emt 0:00:12]} 5. Bd3 {[%emt 0:01:23]} Ne4 {[%emt 0:04:46]} 6. Bxe4 {[%emt 0:01:48] D02: 1 d4 d5 2 Nf3 sidelines, including 2...Nf6 3 g3 and 2...Nf6 3 Bf4.} dxe4 {[%emt 0:01:00]} 7. Nfd2 {[%emt 0:00:22] [#]} Bg6 $146 {[%emt 0:07:13]} ({Predecessor:} 7... Bd6 8. Bg3 Nd7 9. Nc3 Bxg3 10. hxg3 Nf6 11. Qe2 Qd7 12. Nc4 O-O-O 13. Ne5 Qe8 14. g4 Bg6 15. Nxg6 hxg6 16. Rxh8 Qxh8 17. g5 Qh1+ 18. Qf1 Rh8 19. gxf6 gxf6 20. O-O-O {1-0 (20) Morais Carreras,J (1970)-Canovas Pardo,J (1793) Santa Eulalia de Roncana 2016}) 8. c4 {[%emt 0:04:36] White is slightly better.} Be7 {[%emt 0:01:57]} 9. Qb3 {[%emt 0:00:10]} b6 {[%emt 0:06:13]} 10. Nc3 {[%emt 0:03:19]} f5 {[%emt 0:00:20] [#]} (10... O-O $14) 11. Nb5 $1 $16 {[%emt 0:00:52]} Bd6 {[%emt 0:08:08]} 12. c5 {[%emt 0:17:27] White is more active.} (12. Nxd6+ $16 cxd6 13. c5) 12... Bxf4 $14 {[%emt 0:01:24]} 13. Qxe6+ {[%emt 0:00:14]} ({Of course not} 13. exf4 O-O $11) 13... Qe7 {[%emt 0:02:44]} 14. Qc8+ {[%emt 0:01:22][%mdl 64] Skewer} Qd8 {[%emt 0:10:05]} 15. Qb7 $36 {[%emt 0:02:03][%mdl 2048] White has strong initiative.} Nd7 {[%emt 0:10:05][%cal Oa7a6] [#] Strongly threatening ...a6!} 16. exf4 {[%emt 0:00:13]} O-O {[%emt 0:14:06]} 17. Qxc7 {[%emt 0:10:57]} Qxc7 {[%emt 0:00:49]} (17... bxc5 $1 $11 {keeps the balance.} 18. Nb3 (18. dxc5 a6 $17) 18... cxd4) 18. Nxc7 $16 {[%emt 0:00:08]} Rac8 {[%emt 0:00:14]} (18... Rab8 $16) 19. Nd5 $18 {[%emt 0:00:57]} Rfe8 {[%emt 0:01:35] Inhibits Ne7+.} 20. cxb6 {[%emt 0:00:36]} (20. b4 $18) 20... Nxb6 $16 {[%emt 0:01:08]} 21. Ne3 {[%emt 0:03:32]} Red8 {[%emt 0:01:08]} 22. Nb3 {[%emt 0:00:13]} Nc4 {[%emt 0:01:21]} 23. Nxc4 {[%emt 0:01:38]} Rxc4 {[%emt 0:00:06]} 24. Kd2 {[%emt 0:14:38] Prevents Rc2+.} Bf7 {[%emt 0:02:15]} 25. Rhc1 {[%emt 0:01:59] Threatens to win with Rxc4.} Rxc1 {[%emt 0:00:34]} (25... Rb4 $142) 26. Kxc1 {[%emt 0:00:21] White is clearly better.} ({Don't play} 26. Rxc1 $6 Bxb3 27. axb3 Rxd4+ 28. Ke2 Rb4 $14) 26... Bc4 {[%emt 0:05:53]} 27. Kc2 {[%emt 0:00:36]} Kf7 {[%emt 0:06:33]} 28. Kc3 {[%emt 0:00:13]} Rc8 {[%emt 0:02:50]} 29. Nc5 {[%emt 0:00:12] Weighted Error Value: White=0.11 (very precise) /Black=0.31} 1-0

[Event "DPEM German Cup 2022"]
[Site "Magdeburg"]
[Date "2022.08.18"]
[Round "1.3"]
[White "Kist, Eike Andreas"]
[Black "Wulff, Joerg"]
[Result "1-0"]
[ECO "C40"]
[WhiteElo "1697"]
[BlackElo "1819"]
[Annotator "NA RC"]
[PlyCount "179"]
[EventDate "2022.08.10"]
[EventType "k.o."]
[EventCountry "GER"]
[SourceTitle "playchess.com"]
[Source "ChessBase"]
[SourceQuality "1"]
[TimeControl "40/5400+30:900+30"]

1. e4 {[%emt 0:00:01]} e5 {[%emt 0:00:11]} 2. Nf3 {[%emt 0:00:05]} Qe7 {[%emt 0:00:23]} 3. Bc4 {[%emt 0:02:47]} d6 {[%emt 0:00:30]} 4. Nc3 {[%emt 0:02:32]} c6 {[%emt 0:00:21]} 5. a4 {[%emt 0:08:03]} Nf6 {[%emt 0:00:55]} 6. O-O $14 {[%emt 0:16:55]} Bg4 {[%emt 0:02:22]} 7. d4 {[%emt 0:00:27]} Qc7 {[%emt 0:01:29]} 8. dxe5 {[%emt 0:02:59]} dxe5 {[%emt 0:01:34]} 9. Qe2 {[%emt 0:04:59]} Be7 {[%emt 0:02:49]} 10. Nd1 {[%emt 0:04:39]} O-O {[%emt 0:05:06]} 11. Ne3 {[%emt 0:00:22]} Bh5 {[%emt 0:02:15]} 12. Nf5 {[%emt 0:01:18]} Bc5 {[%emt 0:01:43]} 13. Bg5 {[%emt 0:05:10]} Nbd7 {[%emt 0:10:26]} 14. Ng3 {[%emt 0:00:30]} Bg6 {[%emt 0:03:51]} 15. Nh4 {[%emt 0:00:56]} Rfe8 {[%emt 0:06:32]} 16. c3 {[%emt 0:01:38]} a5 {[%emt 0:02:01]} 17. Rad1 {[%emt 0:01:19]} Bf8 {[%emt 0:07:01]} 18. Nxg6 {[%emt 0:04:07]} hxg6 {[%emt 0:01:50]} 19. Qf3 {[%emt 0:00:05]} Rab8 {[%emt 0:18:08]} 20. Rd2 {[%emt 0:06:08]} b5 {[%emt 0:05:28]} 21. axb5 {[%emt 0:00:51]} cxb5 {[%emt 0:00:13]} 22. Ba2 {[%emt 0:00:36]} Rb6 {[%emt 0:07:48]} 23. Rfd1 {[%emt 0:02:55]} Rd6 {[%emt 0:05:22]} 24. Rxd6 {[%emt 0:03:30]} Bxd6 {[%emt 0:00:08]} 25. Qd3 {[%emt 0:00:23]} Bc5 {[%emt 0:06:10]} 26. Qxb5 {[%emt 0:00:45]} Qa7 {[%emt 0:03:57]} 27. Qe2 {[%emt 0:01:22]} Rb8 {[%emt 0:00:44]} 28. Rd2 {[%emt 0:04:08]} Nh7 {[%emt 0:01:17]} 29. Be3 {[%emt 0:05:41]} Bxe3 {[%emt 0:00:23]} 30. Qxe3 {[%emt 0:00:12]} Qxe3 {[%emt 0:00:24]} 31. fxe3 {[%emt 0:00:06]} Nhf6 {[%emt 0:00:43]} 32. Bd5 {[%emt 0:05:42]} Nc5 {[%emt 0:00:56]} 33. Rc2 {[%emt 0:00:52]} Na4 {[%emt 0:01:42]} 34. b3 {[%emt 0:00:48]} Nb6 {[%emt 0:01:26]} 35. c4 {[%emt 0:00:50]} Rc8 {[%emt 0:00:52]} 36. Ra2 {[%emt 0:07:27]} Rc5 {[%emt 0:00:01]} 37. Kf2 {[%emt 0:00:43]} Ng4+ {[%emt 0:00:05]} 38. Ke2 {[%emt 0:00:40]} Nxh2 {[%emt 0:00:02]} 39. Kd3 {[%emt 0:00:32]} Ng4 {[%emt 0:00:07]} 40. Ne2 {[%emt 0:01:12]} Nf2+ {[%emt 0:02:39]} 41. Kd2 {[%emt 0:15:53]} Ng4 {[%emt 0:12:04]} 42. Nc3 {[%emt 0:00:00]} Nf6 {[%emt 0:00:32]} 43. Kd3 {[%emt 0:00:00]} Kf8 {[%emt 0:01:28]} 44. Rb2 {[%emt 0:00:00]} Nfd7 {[%emt 0:02:38]} 45. Ra2 {[%emt 0:00:00]} Nf6 {[%emt 0:00:23]} 46. Rf2 {[%emt 0:00:00]} Ke8 {[%emt 0:00:52]} 47. Rf1 {[%emt 0:00:00]} Ke7 {[%emt 0:00:32]} 48. Rb1 {[%emt 0:01:34]} Rc8 {[%emt 0:00:33]} 49. Na4 {[%emt 0:00:49]} Nxa4 {[%emt 0:00:29]} 50. bxa4 {[%emt 0:00:05]} Nd7 {[%emt 0:00:09]} 51. Rb5 {[%emt 0:00:43]} Nc5+ {[%emt 0:00:36]} 52. Kc2 {[%emt 0:00:23]} Nxe4 {[%emt 0:00:42]} 53. Bxe4 {[%emt 0:00:47]} Rxc4+ {[%emt 0:00:02]} 54. Kd3 {[%emt 0:00:13]} Rxa4 {[%emt 0:00:04]} 55. Rxe5+ {[%emt 0:00:26]} Kd6 {[%emt 0:01:05]} 56. Rd5+ {[%emt 0:00:40]} Ke6 {[%emt 0:00:04]} 57. Rb5 {[%emt 0:02:03]} Ra3+ {[%emt 0:00:27]} 58. Ke2 {[%emt 0:00:27]} Ra2+ {[%emt 0:00:11]} 59. Kf3 {[%emt 0:00:17]} Ra3 {[%emt 0:00:02]} 60. Bd5+ {[%emt 0:00:31]} Kf6 {[%emt 0:02:00]} 61. Rb6+ {[%emt 0:00:17]} Ke5 {[%emt 0:00:25]} 62. Bxf7 {[%emt 0:00:29]} g5 {[%emt 0:00:18]} 63. Re6+ {[%emt 0:01:01]} Kd5 {[%emt 0:00:21]} 64. Rg6+ {[%emt 0:02:21]} Ke5 {[%emt 0:00:03]} 65. Bg8 {[%emt 0:00:35]} Ra1 {[%emt 0:00:29]} 66. Rxg7 {[%emt 0:00:42]} Kf6 {[%emt 0:00:01]} 67. Ra7 {[%emt 0:00:35]} Rf1+ {[%emt 0:00:23]} 68. Ke2 {[%emt 0:00:31]} Ra1 {[%emt 0:00:25]} 69. Bc4 {[%emt 0:00:37]} Rc1 {[%emt 0:01:19]} 70. Ra6+ {[%emt 0:01:15]} Kg7 {[%emt 0:00:17]} 71. Bd3 {[%emt 0:00:12]} Rc5 {[%emt 0:00:28]} 72. g4 {[%emt 0:00:36]} Re5 {[%emt 0:00:26]} 73. Bf5 {[%emt 0:00:25]} a4 74. Rxa4 {[%emt 0:00:14]} Rc5 {[%emt 0:02:14]} 75. Ra7+ {[%emt 0:00:12]} Kh8 {[%emt 0:00:15]} 76. Ra6 {[%emt 0:00:16]} Re5 {[%emt 0:00:32]} 77. Rh6+ {[%emt 0:00:06]} Kg7 {[%emt 0:00:28]} 78. Rg6+ {[%emt 0:00:06]} Kh8 {[%emt 0:00:08]} 79. Bd3 {[%emt 0:00:51]} Rc5 {[%emt 0:00:28]} 80. Rf6 {[%emt 0:00:13]} Ra5 {[%emt 0:00:14]} 81. Rf5 {[%emt 0:00:10]} Ra1 {[%emt 0:00:19]} 82. Bc4 {[%emt 0:00:25]} Rc1 {[%emt 0:00:12]} 83. Bd5 {[%emt 0:00:18]} Rc2+ {[%emt 0:00:17]} 84. Kd3 {[%emt 0:00:11]} Rc7 {[%emt 0:00:36]} 85. Rxg5 {[%emt 0:00:19]} Ra7 {[%emt 0:00:09]} 86. e4 {[%emt 0:00:10]} Ra3+ {[%emt 0:00:12]} 87. Kd4 {[%emt 0:00:10]} Ra4+ {[%emt 0:00:09]} 88. Ke5 {[%emt 0:00:08]} Ra7 {[%emt 0:00:18]} 89. Kf6 {[%emt 0:00:21]} Rg7 {[%emt 0:00:55]} 90. Rh5+ {[%emt 0:01:09]} 1-0

[Event "DPEM German Cup 2022"]
[Site "Magdeburg"]
[Date "2022.08.18"]
[Round "1.4"]
[White "Schroeder, Torsten"]
[Black "Chassard, Cedric"]
[Result "0-1"]
[ECO "E05"]
[WhiteElo "2173"]
[BlackElo "2010"]
[Annotator "TA"]
[PlyCount "72"]
[EventDate "2022.08.10"]
[EventType "k.o."]
[EventCountry "GER"]
[SourceTitle "playchess.com"]
[Source "ChessBase"]
[SourceQuality "1"]
[TimeControl "40/5400+30:900+30"]

{[%evp 25,72,0,-11,-45,-39,-40,12,13,81,78,78,35,31,15,25,20,23,9,29,29,31,0,0,0,0,0,0,-89,-97,-92,-89,-181,-17,-204,-196,-325,-312,-357,-364,-356,-352,-352,-350,-532,-520,-530,-545,-897,-345]} 1. Nf3 {[%emt 0:01:36]} d5 {[%emt 0:00:16]} 2. d4 {[%emt 0:00:05]} Nf6 {[%emt 0:00:18]} 3. g3 {[%emt 0:00:34]} e6 {[%emt 0:00:35]} 4. Bg2 {[%emt 0:00:06]} Be7 {[%emt 0:00:02]} 5. O-O {[%emt 0:00:23]} O-O {[%emt 0:00:06]} 6. c4 {[%emt 0:04:26]} dxc4 {[%emt 0:00:05]} 7. Qc2 {[%emt 0:00:25]} a6 {[%emt 0:00:03]} 8. Qxc4 {[%emt 0:01:23]} b5 {[%emt 0:00:12]} 9. Qc2 {[%emt 0:00:53]} Bb7 {[%emt 0:00:56]} 10. Bf4 {[%emt 0:00:09]} Nc6 {[%emt 0:15:42]} 11. Rd1 {[%emt 0:04:11]} Nb4 {[%emt 0:05:56]} 12. Qc1 {[%emt 0:03:24]} Rc8 {[%emt 0:01:00]} 13. Nc3 {[%emt 0:04:03]} Nbd5 {[%emt 0:03:42]} 14. Bg5 {[%emt 0:35:14] E05: Open Catalan: 5 Nf3 Be7.} c5 {[%emt 0:04:51]} 15. Nxd5 {[%emt 0:01:56]} Nxd5 {[%emt 0:08:57]} (15... Bxd5 $15 16. dxc5 Rxc5) 16. dxc5 $11 {[%emt 0:11:02] [#] And now e4 would win. The position is equal.} Qc7 $146 {[%emt 0:07:16]} (16... h6 $11 17. Be3 Qa5) ({Predecessor:} 16... Qe8 17. Bxe7 Qxe7 18. Qd2 Rxc5 19. Rac1 Rfc8 20. Ne5 h6 21. Nd3 Rc4 22. b3 R4c7 23. Rxc7 Rxc7 24. Rc1 Rxc1+ 25. Qxc1 a5 26. a3 b4 27. axb4 Nxb4 {½-½ (27) Stohl,I (2556)-Georgiev,K (2654) Kallithea 2002}) 17. e4 $16 {[%emt 0:12:16]} Nf6 {[%emt 0:02:11]} 18. b4 {[%emt 0:00:12]} (18. Bxf6 $5 gxf6 19. b4 $14) 18... Bxe4 {[%emt 0:04:18]} 19. Ne1 {[%emt 0:10:16] aiming for Bxf6.} Bxg2 {[%emt 0:09:34]} 20. Nxg2 {[%emt 0:00:03]} Rfd8 {[%emt 0:08:01]} 21. Qc2 {[%emt 0:00:58]} Nd5 {[%emt 0:05:05][%cal Bf6d5,Bd5e7,Be7c6][%mdl 32]} (21... Qe5 {is interesting.} 22. h4 Nd5 23. Bxe7 Nxe7 24. Rxd8+ Rxd8 25. Rd1 Rd4) 22. Bxe7 {[%emt 0:00:18]} Nxe7 {[%emt 0:00:11]} 23. Rxd8+ {[%emt 0:01:27]} Rxd8 {[%emt 0:00:10]} 24. Rd1 {[%emt 0:00:13]} Nc6 {[%emt 0:00:27]} 25. a3 {[%emt 0:00:51]} a5 {[%emt 0:01:36]} 26. Rb1 {[%emt 0:02:46]} (26. bxa5 $11 {remains equal.} Qxa5 27. Rxd8+ Qxd8 28. Qe4) 26... axb4 $17 {[%emt 0:02:31]} 27. axb4 {[%emt 0:00:02]} Qe5 {[%emt 0:01:11] Against Qe2. Black is more active.} 28. Ne3 {[%emt 0:00:26] [#]} (28. f4 $17 {was necessary.} Qd4+ 29. Qf2) 28... g6 $2 {[%emt 0:03:11]} (28... Nd4 $1 $19 {[%cal Rd4c2]} 29. Qa2 Qe4) 29. Kf1 $2 {[%emt 0:01:32] This costs White the game.} (29. Ng4 $1 $11 Qd4 30. Qe2) 29... Rd4 $19 {[%emt 0:04:39]} 30. Rd1 {[%emt 0:02:05]} (30. h3 $142) 30... Nxb4 {[%emt 0:01:27]} 31. Qb1 {[%emt 0:00:03]} Rxd1+ {[%emt 0:01:02]} ({But not} 31... Qxc5 $2 32. Rc1 Qe5 33. h3 $19) 32. Qxd1 {[%emt 0:00:08]} Qxc5 {[%emt 0:00:19]} 33. Qd8+ {[%emt 0:01:46]} Kg7 {[%emt 0:00:23]} 34. Qb8 {[%emt 0:00:09]} (34. Qd2 $142) 34... Nd3 {[%emt 0:02:08] Black is clearly winning.} 35. Ke2 {[%emt 0:00:44]} Ne5 {[%emt 0:00:30]} ({Not} 35... Qc3 36. Qxb5 Ne5 37. h4 $17) 36. f4 {[%emt 0:01:00]} Nc4 $2 {[%emt 0:00:12] Weighted Error Value: White=0.66/Black=0.22 (precise)} (36... Nc6 37. Qb7 Qc3) 0-1

[Event "DPEM German Cup 2022"]
[Site "Magdeburg"]
[Date "2022.08.18"]
[Round "1.5"]
[White "Bosselmann, Tom Linus"]
[Black "Brunke, Pascal"]
[Result "1/2-1/2"]
[ECO "D35"]
[WhiteElo "2041"]
[BlackElo "2022"]
[Annotator "NA RC"]
[PlyCount "128"]
[EventDate "2022.08.10"]
[EventType "k.o."]
[EventCountry "GER"]
[SourceTitle "playchess.com"]
[Source "ChessBase"]
[SourceQuality "1"]
[TimeControl "40/5400+30:900+30"]

1. d4 {[%emt 0:00:02]} d5 {[%emt 0:00:14]} 2. c4 {[%emt 0:00:05]} e6 {[%emt 0:00:05]} 3. Nc3 {[%emt 0:00:09]} Nf6 {[%emt 0:00:05]} 4. cxd5 {[%emt 0:00:06]} exd5 {[%emt 0:00:05]} 5. Bg5 {[%emt 0:00:06]} Be7 {[%emt 0:00:04]} 6. e3 {[%emt 0:00:06]} O-O {[%emt 0:00:05]} 7. Qc2 {[%emt 0:00:21]} Re8 {[%emt 0:00:12]} 8. Bd3 {[%emt 0:00:22]} h6 {[%emt 0:00:05]} 9. Bh4 {[%emt 0:00:12]} c5 {[%emt 0:00:24]} 10. Nge2 {[%emt 0:23:07]} (10. dxc5 $1 $14 {deserves consideration.} Nc6 11. Nge2) 10... Nc6 {[%emt 0:00:47]} 11. O-O {[%emt 0:06:26]} Nb4 {[%emt 0:08:56]} 12. Qb1 {[%emt 0:01:04]} Nxd3 {[%emt 0:00:40]} 13. Qxd3 {[%emt 0:00:09]} c4 {[%emt 0:00:49]} 14. Qc2 {[%emt 0:01:13]} b6 {[%emt 0:14:34]} 15. f3 {[%emt 0:02:40]} Bb7 {[%emt 0:01:16]} 16. Rae1 {[%emt 0:04:35]} Qd7 {[%emt 0:03:43]} 17. Bf2 {[%emt 0:08:45]} b5 {[%emt 0:06:45]} 18. Nf4 {[%emt 0:03:38]} b4 {[%emt 0:03:34]} 19. Nce2 {[%emt 0:00:34]} Rac8 {[%emt 0:01:28]} 20. g4 {[%emt 0:01:06]} a5 {[%emt 0:05:54]} 21. h4 {[%emt 0:03:37]} Nh7 {[%emt 0:00:54]} 22. Ng3 {[%emt 0:17:27]} Bxh4 {[%emt 0:14:56]} 23. Nf5 {[%emt 0:00:21]} Bg5 {[%emt 0:01:28]} 24. Nh5 {[%emt 0:02:56]} g6 {[%emt 0:15:36]} 25. f4 {[%emt 0:00:03]} Bd8 {[%emt 0:00:08]} 26. Nxh6+ {[%emt 0:00:19]} Kh8 {[%emt 0:00:19]} 27. Ng3 {[%emt 0:01:53]} Kg7 {[%emt 0:00:18]} 28. g5 {[%emt 0:02:58]} c3 {[%emt 0:01:44]} 29. Kg2 {[%emt 0:00:19]} Ba6 {[%emt 0:01:35]} 30. Rh1 {[%emt 0:00:28]} cxb2 {[%emt 0:00:20]} 31. Qb1 {[%emt 0:04:26]} Rc1 {[%emt 0:06:03]} 32. Rxc1 {[%emt 0:01:38]} bxc1=Q {[%emt 0:00:06]} 33. Rxc1 $2 {[%emt 0:00:33]} (33. Qxc1 $15 Nxg5 34. Qd1 (34. fxg5 $2 Bxg5 35. Nhf5+ gxf5 $19)) 33... Bc4 {[%emt 0:01:24]} 34. Rh1 {[%emt 0:00:18]} Nxg5 {[%emt 0:07:13]} 35. fxg5 {[%emt 0:01:34]} Bxg5 {[%emt 0:00:03]} 36. Nhf5+ {[%emt 0:00:41]} gxf5 {[%emt 0:00:06]} 37. Nxf5+ {[%emt 0:00:09]} Kf6 {[%emt 0:01:13]} 38. Ng3 {[%emt 0:00:57]} Ke7 {[%emt 0:05:02]} 39. e4 {[%emt 0:00:18]} Kd8 {[%emt 0:00:31]} 40. e5 {[%emt 0:00:14]} Be7 {[%emt 0:01:09]} 41. Rh7 {[%emt 0:17:58]} Qe6 {[%emt 0:02:36]} 42. Qc2 {[%emt 0:00:00]} Bb5 {[%emt 0:03:45]} 43. Qf5 {[%emt 0:00:00]} Qxf5 {[%emt 0:00:58]} 44. Nxf5 {[%emt 0:00:00]} Rg8+ {[%emt 0:02:10]} 45. Kf3 {[%emt 0:00:00]} Bd3 {[%emt 0:01:34]} 46. Rxf7 {[%emt 0:00:00] [#]} Rf8 $1 {[%emt 0:00:14]} 47. Rxf8+ {[%emt 0:00:00]} Bxf8 {[%emt 0:00:04]} 48. Ne3 $19 {[%emt 0:02:23]} Bb1 {[%emt 0:01:02]} 49. Nxd5 {[%emt 0:00:45]} Bxa2 {[%emt 0:00:02]} 50. Nb6 {[%emt 0:02:03]} Kc7 {[%emt 0:00:58]} 51. d5 {[%emt 0:00:21]} Bb3 {[%emt 0:01:58]} 52. d6+ {[%emt 0:04:19]} Kc6 {[%emt 0:01:22]} 53. Ke2 {[%emt 0:01:00]} Be6 {[%emt 0:01:10]} 54. Kd3 {[%emt 0:00:38]} Bg7 {[%emt 0:01:08]} 55. Bd4 {[%emt 0:01:55]} Bxe5 {[%emt 0:00:29]} 56. Bxe5 {[%emt 0:00:01]} Kxb6 {[%emt 0:00:06]} 57. Kc2 {[%emt 0:00:19]} Kb5 {[%emt 0:00:22]} 58. d7 {[%emt 0:02:13]} Bxd7 {[%emt 0:00:00]} 59. Bd6 {[%emt 0:00:13]} Bf5+ {[%emt 0:00:21]} 60. Kb2 {[%emt 0:00:07]} Kc4 {[%emt 0:00:16]} 61. Bf8 {[%emt 0:00:06]} a4 {[%emt 0:00:17]} 62. Bxb4 {[%emt 0:00:05]} Kxb4 {[%emt 0:00:05]} 63. Ka2 {[%emt 0:00:12]} a3 {[%emt 0:00:01]} 64. Ka1 {[%emt 0:00:24]} Kb3 {[%emt 0:00:04]} 1/2-1/2

[Event "DPEM German Cup 2022"]
[Site "Magdeburg"]
[Date "2022.08.18"]
[Round "1.6"]
[White "Heinrich, Julius Tobias"]
[Black "Tiarks, Jann-Christian"]
[Result "1-0"]
[ECO "B22"]
[WhiteElo "2074"]
[BlackElo "2196"]
[Annotator "TA"]
[PlyCount "83"]
[EventDate "2022.08.10"]
[EventType "k.o."]
[EventCountry "GER"]
[SourceTitle "playchess.com"]
[Source "ChessBase"]
[SourceQuality "1"]
[TimeControl "40/5400+30:900+30"]

{[%evp 9,83,-77,-22,-29,-26,-52,-47,-58,-60,-58,-51,-52,-47,-53,-48,-60,-44,-53,-54,-59,-30,-36,-6,-29,61,-10,0,0,30,-45,-53,-60,-44,-34,-11,-12,-11,-8,-8,-112,-120,-114,-110,-133,-24,-143,-128,-213,-211,-211,-218,-189,-95,-108,-95,-102,-27,-27,0,0,0,0,0,0,0,0,29967,12844,29971,29972,29972,29974,29973,29975,5616,395]} 1. e4 {[%emt 0:00:03]} c5 {[%emt 0:00:11]} 2. c3 {[%emt 0:00:05]} d5 {[%emt 0:00:30]} 3. e5 {[%emt 0:00:08]} Bf5 {[%emt 0:00:30]} 4. g4 {[%emt 0:06:16]} Be4 {[%emt 0:04:01]} 5. f3 Bxb1 {[%emt 0:03:50]} (5... Bg6 $17 {Threatening ...e6.} 6. Bb5+ Nd7) 6. Rxb1 $11 {[%emt 0:00:00] B22: Sicilian: 2 c3.} e6 {[%emt 0:00:08] [#]} 7. Bb5+ $146 {[%emt 0:00:00]} ({Predecessor:} 7. Ne2 Nc6 8. d4 cxd4 9. Qa4 Bc5 10. cxd4 Bb6 11. h4 Qd7 12. Qd1 f6 13. f4 fxe5 14. fxe5 {0-1 (37) Dzwikowski,A (2085)-Nowak,R (2110) Poznan 2001}) 7... Nc6 {[%emt 0:00:58]} 8. Ne2 {[%emt 0:09:34] Black is slightly better.} h5 {[%emt 0:05:18]} 9. Qa4 {[%emt 0:01:31]} Nge7 {[%emt 0:03:49] Hoping for ...a6.} 10. g5 {[%emt 0:11:25]} a6 {[%emt 0:00:48]} 11. Bxc6+ {[%emt 0:00:09]} Nxc6 {[%emt 0:00:08]} 12. d4 {[%emt 0:09:10]} b5 {[%emt 0:01:20]} 13. Qd1 {[%emt 0:05:59]} cxd4 {[%emt 0:16:10]} 14. cxd4 {[%emt 0:00:05]} Qa5+ {[%emt 0:00:06]} 15. Bd2 {[%emt 0:04:29]} Qxa2 {[%emt 0:08:30]} 16. g6 {[%emt 0:11:50]} (16. O-O $5 {[%cal Rb1a1]} Bb4 17. Bxb4 Nxb4 18. Qd2 $15) 16... Bb4 {[%emt 0:07:21]} (16... Rc8 $11) 17. O-O {[%emt 0:09:27]} (17. Rc1 $14 Kd7 18. Bxb4 (18. Qc2 $2 Rac8 $17) 18... Nxb4 19. gxf7) 17... O-O {[%emt 0:24:42]} 18. Bxb4 {[%emt 0:10:19]} Nxb4 {[%emt 0:01:09]} 19. Qd2 {[%emt 0:00:08]} (19. Nf4 $1 $11) 19... Qb3 $15 {[%emt 0:02:11]} 20. gxf7+ {[%emt 0:00:33]} Rxf7 {[%emt 0:00:57]} 21. Nf4 {[%emt 0:03:41] [#]} Qc2 $1 $36 {[%emt 0:08:34][%mdl 2048] Black is pushing.} 22. Qxc2 {[%emt 0:02:30]} Nxc2 {[%emt 0:00:06]} 23. Nxe6 {[%emt 0:01:39]} Re8 {[%emt 0:00:26]} 24. Rfc1 {[%emt 0:09:49]} (24. Rbc1 $1 $11 {was the only way to keep the balance.}) 24... Rxe6 $17 {[%emt 0:06:30]} 25. Rxc2 {[%emt 0:00:02]} Rxf3 {[%emt 0:00:42][%mdl 4096] Endgame KRR-KRR} 26. Rc5 {[%emt 0:00:25]} Rg6+ {[%emt 0:02:16]} 27. Kh1 {[%emt 0:00:09]} Rf2 {[%emt 0:00:32]} 28. Rg1 {[%emt 0:02:11] Inhibits Rgg2.} (28. Rxd5 $17 {keeps fighting.} Rgg2 29. Rd8+ Kh7 30. h4) 28... Rxg1+ $19 {[%emt 0:00:32]} 29. Kxg1 {[%emt 0:00:01]} Rxb2 {[%emt 0:00:07]} 30. Rxd5 {[%emt 0:00:04] [#] KR-KR} b4 {[%emt 0:02:04]} ({Black should try} 30... a5 $1 $19 {[%cal Ra5a4] And now ...a4 would win.} 31. e6 Kf8 32. Rxh5 a4) 31. e6 {[%emt 0:01:29] Rd8+ would kill now.} Kf8 {[%emt 0:00:09]} 32. Rd7 {[%emt 0:01:49]} Rd2 {[%emt 0:00:48]} (32... Re2 $17 {Strongly threatening ...b3.} 33. Rb7 a5) 33. d5 $1 $11 {[%emt 0:00:10][%cal Bd4d5,Bd5d6,Bd6d7][%mdl 32]} b3 {[%emt 0:00:16]} (33... Re2 $5 {[%cal Rb4b3]} 34. Rb7 Re5 35. Rxb4 Rxd5 $17) 34. d6 {[%emt 0:00:14][%cal Rd7d8]} Ke8 {[%emt 0:00:08] Prevents Rd8+. ( -> ...b2)} 35. Re7+ {[%emt 0:00:39]} Kd8 {[%emt 0:00:37] aiming for ...b2.} 36. Rd7+ $1 {[%emt 0:00:06]} Ke8 {[%emt 0:00:55] ...b2 is the strong threat.} 37. Re7+ {[%emt 0:00:05]} Kf8 $2 {[%emt 0:00:16][%mdl 8192] [#]} (37... Kd8 $11 38. Rd7+ Ke8) 38. Rf7+ $1 {[%emt 0:00:23]} Kg8 {[%emt 0:00:27]} 39. d7 {[%emt 0:00:41]} b2 {[%emt 0:00:07]} 40. Rf1 {[%emt 0:00:13]} b1=Q {[%emt 0:01:20]} 41. Rxb1 {[%emt 0:15:05]} Kf8 {[%emt 0:15:35]} 42. Rb8+ {[%emt 0:00:15] Never resign too early!  Weighted Error Value: White=0.19 (very precise) /Black=0.62} 1-0